[Event "South Island Championships 2023"]
[Site "Oamaru, New Zealand"]
[Date "????.??.??"]
[Round "5.9"]
[White "Williams, Matt"]
[Black "Coleman, Phil"]
[Result "0-1"]
[TimeControl "90 + 30"]
[WhiteFideId "4319575"]
[BlackFideId "4319443"]
[WhiteElo "1828"]
[BlackElo "1872"]

1. d4 {[%clk 01:30:57]} {[%emt 00:00:02]} e5 {[%clk 01:30:55]} {[%emt
00:00:06]} 2. dxe5 {[%clk 01:31:15]} {[%emt 00:00:12]} d6 {[%clk 01:31:14]}
{[%emt 00:00:12]} 3. Bf4 {[%clk 01:30:37]} {[%emt 00:01:07]} Nc6 {[%clk
01:30:40]} {[%emt 00:01:05]} 4. exd6 {[%clk 01:29:19]} {[%emt 00:01:47]} Qf6
{[%clk 01:28:16]} {[%emt 00:02:54]} 5. Bd2 {[%clk 01:25:41]} {[%emt 00:04:08]}
Bxd6 {[%clk 01:27:58]} {[%emt 00:00:49]} 6. e3 {[%clk 01:24:12]} {[%emt
00:01:59]} Be6 {[%clk 01:26:05]} {[%emt 00:02:22]} 7. Bb5 {[%clk 01:21:23]}
{[%emt 00:03:18]} Nge7 {[%clk 01:23:27]} {[%emt 00:03:08]} 8. Bc3 {[%clk
01:16:17]} {[%emt 00:05:36]} Qg6 {[%clk 01:19:42]} {[%emt 00:04:15]} 9. Nf3
{[%clk 01:11:01]} {[%emt 00:05:46]} O-O-O {[%clk 01:19:22]} {[%emt 00:00:51]}
10. Nbd2 {[%clk 01:06:17]} {[%emt 00:05:13]} Rhe8 {[%clk 01:15:59]} {[%emt
00:03:54]} 11. O-O {[%clk 01:01:03]} {[%emt 00:05:43]} h5 {[%clk 01:13:59]}
{[%emt 00:02:30]} 12. Nd4 {[%clk 00:56:18]} {[%emt 00:05:15]} Bh3 {[%clk
01:10:57]} {[%emt 00:03:32]} 13. Qf3 {[%clk 00:52:34]} {[%emt 00:04:14]} Bg4
{[%clk 01:08:07]} {[%emt 00:03:20]} 14. Bd3 {[%clk 00:52:25]} {[%emt 00:00:39]}
f5 {[%clk 01:06:24]} {[%emt 00:02:14]} 15. Nxf5 {[%clk 00:38:58]} {[%emt
00:13:57]} Nxf5 {[%emt 00:03:57]} 16. Bxf5+ {[%clk 00:37:32]} {[%emt 00:01:54]}
Bxf5 {[%emt 00:02:22]} 17. e4 {[%emt 00:03:02]} Bxe4 {[%clk 00:53:51]} {[%emt
00:04:13]} 18. Nxe4 {[%clk 00:37:51]} {[%emt 00:00:11]} Rxe4 {[%clk 00:54:13]}
{[%emt 00:00:09]} 19. Rad1 {[%clk 00:37:20]} {[%emt 00:01:01]} Rg4 {[%clk
00:51:34]} {[%emt 00:03:08]} 20. Rd3 {[%clk 00:36:06]} {[%emt 00:01:44]} Ne7
{[%clk 00:47:17]} {[%emt 00:04:48]} 21. h3 {[%clk 00:33:18]} {[%emt 00:03:18]}
Rg5 {[%clk 00:44:21]} {[%emt 00:03:25]} 22. Bd2 {[%clk 00:29:31]} {[%emt
00:04:17]} Rf5 {[%clk 00:42:47]} {[%emt 00:02:04]} 23. Qe4 {[%clk 00:29:06]}
{[%emt 00:00:55]} Rdf8 {[%clk 00:41:20]} {[%emt 00:01:46]} 24. Be3 {[%clk
00:26:49]} {[%emt 00:02:58]} Nc6 {[%clk 00:37:53]} {[%emt 00:03:48]} 25. Rfd1
{[%clk 00:25:44]} {[%emt 00:01:44]} Qf6 {[%clk 00:36:53]} {[%emt 00:01:30]} 26.
Rb3 {[%clk 00:22:59]} {[%emt 00:03:15]} Qe5 {[%clk 00:35:07]} {[%emt 00:02:17]}
27. Qh4 {[%clk 00:21:27]} {[%emt 00:02:01]} Qh2+ {[%clk 00:33:08]} {[%emt
00:02:30]} 28. Kf1 {[%clk 00:21:54]} {[%emt 00:00:03]} Qh1+ {[%clk 00:32:52]}
{[%emt 00:00:45]} 29. Ke2 {[%clk 00:22:15]} {[%emt 00:00:09]} Qxg2 {[%clk
00:32:41]} {[%emt 00:00:40]} 30. Rxd6 {[%clk 00:21:12]} {[%emt 00:01:34]} cxd6
{[%clk 00:31:48]} {[%emt 00:01:23]} 31. Rc3 {[%clk 00:20:08]} {[%emt 00:01:35]}
Qf3+ {[%clk 00:30:03]} {[%emt 00:02:15]} 32. Ke1 {[%clk 00:19:35]} {[%emt
00:01:02]} Rd5 {[%clk 00:29:40]} {[%emt 00:00:53]} 33. Bd2 {[%clk 00:17:41]}
{[%emt 00:02:25]} Re8+ {[%clk 00:27:13]} {[%emt 00:02:57]} 0-1

[Event "South Island Championships 2023"]
[Site "Oamaru, New Zealand"]
[Date "????.??.??"]
[Round "5.8"]
[White "Holdo, Karl"]
[Black "Cummings, Nick"]
[Result "1/2-1/2"]
[TimeControl "90 + 30"]
[WhiteFideId "4304586"]
[BlackFideId "4301218"]
[WhiteElo "1551"]
[BlackElo "2094"]

1. d4 {[%clk 01:30:23]} {[%emt 00:00:33]} f5 {[%clk 01:30:58]} {[%emt
00:00:03]} 2. Nf3 {[%clk 01:29:53]} {[%emt 00:01:00]} e6 {[%clk 01:31:09]}
{[%emt 00:00:19]} 3. c4 {[%clk 01:28:58]} {[%emt 00:01:25]} Nf6 {[%clk
01:31:21]} {[%emt 00:00:19]} 4. Nc3 {[%clk 01:28:45]} {[%emt 00:00:42]} b6
{[%clk 01:30:34]} {[%emt 00:01:17]} 5. e3 {[%clk 01:27:55]} {[%emt 00:01:18]}
Bb7 {[%clk 01:30:04]} {[%emt 00:01:02]} 6. Be2 {[%clk 01:25:54]} {[%emt
00:02:31]} Be7 {[%clk 01:29:30]} {[%emt 00:01:03]} 7. b3 {[%clk 01:23:17]}
{[%emt 00:03:07]} O-O {[%clk 01:29:47]} {[%emt 00:00:15]} 8. Bb2 {[%clk
01:23:41]} {[%emt 00:00:05]} Qe8 {[%clk 01:26:36]} {[%emt 00:03:41]} 9. O-O
{[%clk 01:20:58]} {[%emt 00:03:13]} h6 {[%clk 01:14:40]} {[%emt 00:12:27]} 10.
d5 {[%clk 01:19:04]} {[%emt 00:02:23]} exd5 {[%clk 01:13:45]} {[%emt 00:01:25]}
11. Nxd5 {[%clk 01:18:37]} {[%emt 00:00:56]} Nxd5 {[%clk 01:13:28]} {[%emt
00:00:47]} 12. cxd5 {[%clk 01:18:55]} {[%emt 00:00:12]} Bd6 {[%clk 01:04:44]}
{[%emt 00:09:14]} 13. Qd4 {[%clk 01:14:06]} {[%emt 00:05:19]} Qe7 {[%clk
01:00:18]} {[%emt 00:04:56]} 14. Rfd1 {[%clk 01:06:36]} {[%emt 00:08:01]} Ba6
{[%clk 00:58:04]} {[%emt 00:02:43]} 15. Rd2 {[%clk 00:58:36]} {[%emt 00:08:29]}
Rf7 {[%clk 00:36:57]} {[%emt 00:21:38]} 16. Rc1 {[%clk 00:54:00]} {[%emt
00:05:06]} Bxe2 {[%clk 00:23:34]} {[%emt 00:13:54]} 17. Rxe2 {[%clk 00:54:07]}
{[%emt 00:00:21]} c5 {[%clk 00:23:08]} {[%emt 00:00:58]} 18. Qc4 {[%clk
00:49:32]} {[%emt 00:05:04]} Qd8 {[%clk 00:15:25]} {[%emt 00:08:14]} 19. e4
{[%clk 00:44:32]} {[%emt 00:05:29]} fxe4 {[%clk 00:15:40]} {[%emt 00:00:16]} 20.
Rxe4 {[%clk 00:44:47]} {[%emt 00:00:15]} Re7 {[%clk 00:10:54]} {[%emt
00:05:16]} 21. Rxe7 {[%clk 00:44:53]} {[%emt 00:00:23]} Qxe7 {[%clk 00:11:22]}
{[%emt 00:00:03]} 22. Re1 {[%clk 00:45:03]} {[%emt 00:00:19]} Qf7 {[%clk
00:11:44]} {[%emt 00:00:09]} 23. Re4 {[%clk 00:36:55]} {[%emt 00:08:36]} a5
{[%clk 00:11:20]} {[%emt 00:00:56]} 24. Rg4 {[%clk 00:36:19]} {[%emt 00:01:04]}
Bf8 {[%clk 00:11:13]} {[%emt 00:00:39]} 25. Ne5 {[%clk 00:34:59]} {[%emt
00:01:48]} Qf5 {[%clk 00:11:27]} {[%emt 00:00:17]} 26. d6+ {[%clk 00:25:39]}
{[%emt 00:09:50]} Kh7 {[%clk 00:11:42]} {[%emt 00:00:15]} 27. Nd3 {[%clk
00:25:01]} {[%emt 00:01:07]} Nc6 {[%clk 00:11:33]} {[%emt 00:00:39]} 28. Rf4
{[%clk 00:23:51]} {[%emt 00:01:40]} Qg6 {[%clk 00:10:08]} {[%emt 00:01:57]} 29.
Rg4 {[%clk 00:14:50]} {[%emt 00:09:31]} Qf5 {[%clk 00:08:00]} {[%emt 00:02:39]}
30. Rf4 {[%clk 00:14:37]} {[%emt 00:00:41]} Qg6 {[%clk 00:07:43]} {[%emt
00:00:48]} 31. Rg4 {[%clk 00:14:54]} {[%emt 00:00:12]} Qf5 {[%clk 00:06:37]}
{[%emt 00:01:36]} 32. Rf4 {[%clk 00:15:12]} {[%emt 00:00:12]} 1/2-1/2

[Event "South Island Championships 2023"]
[Site "Oamaru, New Zealand"]
[Date "????.??.??"]
[Round "5.1"]
[White "Stark, John"]
[Black "Lukey, Stephen G"]
[Result "1/2-1/2"]
[TimeControl "90 + 30"]
[WhiteFideId "4300963"]
[BlackFideId "4300386"]
[WhiteElo "2204"]
[BlackElo "2307"]

1. e4 {[%clk 01:30:58]} {[%emt 00:00:01]} c5 {[%clk 01:30:56]} {[%emt
00:00:05]} 2. Nf3 {[%clk 01:27:48]} {[%emt 00:03:39]} Nc6 {[%clk 01:30:46]}
{[%emt 00:00:39]} 3. g3 {[%clk 01:23:11]} {[%emt 00:05:09]} g6 {[%clk
01:30:22]} {[%emt 00:00:52]} 4. Bg2 {[%clk 01:23:20]} {[%emt 00:00:22]} Bg7
{[%clk 01:30:47]} {[%emt 00:00:05]} 5. O-O {[%clk 01:23:05]} {[%emt 00:00:45]}
d6 {[%clk 01:30:44]} {[%emt 00:00:33]} 6. d3 {[%clk 01:21:57]} {[%emt
00:01:38]} e6 {[%clk 01:27:23]} {[%emt 00:03:51]} 7. Nbd2 {[%clk 01:21:30]}
{[%emt 00:00:57]} Nge7 {[%clk 01:27:46]} {[%emt 00:00:07]} 8. Re1 {[%clk
01:17:17]} {[%emt 00:04:43]} O-O {[%clk 01:28:02]} {[%emt 00:00:14]} 9. Nf1
{[%clk 01:14:16]} {[%emt 00:03:30]} Bd7 {[%clk 01:20:49]} {[%emt 00:07:44]} 10.
c3 {[%clk 01:11:36]} {[%emt 00:03:10]} e5 {[%clk 01:02:18]} {[%emt 00:19:02]}
11. Be3 {[%clk 00:56:23]} {[%emt 00:15:42]} Rc8 {[%clk 01:02:11]} {[%emt
00:00:38]} 12. h3 {[%clk 00:56:37]} {[%emt 00:00:15]} Kh8 {[%clk 00:56:57]}
{[%emt 00:05:43]} 13. d4 {[%clk 00:49:31]} {[%emt 00:07:36]} cxd4 {[%clk
00:30:17]} {[%emt 00:27:11]} 14. cxd4 {[%clk 00:49:55]} {[%emt 00:00:05]} exd4
{[%clk 00:30:36]} {[%emt 00:00:11]} 15. Nxd4 {[%clk 00:50:14]} {[%emt
00:00:10]} Ne5 {[%clk 00:27:53]} {[%emt 00:03:13]} 1/2-1/2

[Event "South Island Championships 2023"]
[Site "Oamaru, New Zealand"]
[Date "????.??.??"]
[Round "5.11"]
[White "Malcolm, Leo"]
[Black "Ha, Timothy Huy Minh"]
[Result "1/2-1/2"]
[TimeControl "90 + 30"]
[WhiteFideId "4317408"]
[BlackFideId "12417246"]
[WhiteElo "1876"]
[BlackElo "1843"]

1. e4 {[%clk 01:30:58]} {[%emt 00:00:02]} e5 {[%clk 01:30:51]} {[%emt
00:00:09]} 2. f4 {[%clk 01:31:18]} {[%emt 00:00:10]} exf4 {[%clk 01:31:12]}
{[%emt 00:00:08]} 3. Bc4 {[%clk 01:31:42]} {[%emt 00:00:06]} Qh4+ {[%clk
01:25:19]} {[%emt 00:06:23]} 4. Kf1 {[%clk 01:32:06]} {[%emt 00:00:06]} d6
{[%clk 01:23:29]} {[%emt 00:02:20]} 5. d4 {[%clk 01:25:31]} {[%emt 00:07:06]}
g5 {[%clk 01:17:46]} {[%emt 00:06:12]} 6. Nc3 {[%clk 01:19:03]} {[%emt
00:06:59]} c6 {[%clk 01:17:20]} {[%emt 00:00:55]} 7. a4 {[%clk 01:14:42]}
{[%emt 00:04:52]} Bg7 {[%clk 01:13:29]} {[%emt 00:04:19]} 8. g3 {[%clk
01:08:17]} {[%emt 00:06:56]} fxg3 {[%clk 01:06:21]} {[%emt 00:07:38]} 9. Qf3
{[%clk 01:05:44]} {[%emt 00:03:03]} g2+ {[%clk 01:05:16]} {[%emt 00:01:35]} 10.
Qxg2 {[%clk 01:03:02]} {[%emt 00:03:12]} Qg4 {[%clk 00:57:56]} {[%emt
00:07:50]} 11. Qf2 {[%clk 01:01:19]} {[%emt 00:02:13]} Be6 {[%clk 00:52:27]}
{[%emt 00:05:59]} 12. d5 {[%clk 00:58:22]} {[%emt 00:03:28]} cxd5 {[%clk
00:48:23]} {[%emt 00:04:33]} 13. h3 {[%clk 00:38:39]} {[%emt 00:20:14]} Qh4
{[%clk 00:46:14]} {[%emt 00:02:38]} 14. Qxh4 {[%clk 00:36:04]} {[%emt
00:03:05]} gxh4 {[%clk 00:46:37]} {[%emt 00:00:07]} 15. exd5 {[%clk 00:32:59]}
{[%emt 00:03:36]} Bf5 {[%clk 00:45:49]} {[%emt 00:01:16]} 16. Bf4 {[%clk
00:28:17]} {[%emt 00:05:13]} Be5 {[%clk 00:46:11]} {[%emt 00:00:07]} 17. Re1
{[%clk 00:25:12]} {[%emt 00:03:36]} f6 {[%clk 00:46:36]} {[%emt 00:00:05]} 18.
Nf3 {[%clk 00:24:54]} {[%emt 00:00:48]} Nd7 {[%clk 00:46:37]} {[%emt 00:00:29]}
19. Nb5 {[%clk 00:16:25]} {[%emt 00:08:59]} Kf8 {[%clk 00:43:42]} {[%emt
00:03:24]} 20. Nxd6 {[%clk 00:16:18]} {[%emt 00:00:38]} Bxf4 {[%clk 00:43:11]}
{[%emt 00:01:01]} 21. Nxf5 {[%clk 00:16:36]} {[%emt 00:00:12]} Ne5 {[%clk
00:43:25]} {[%emt 00:00:17]} 22. N3d4 {[%clk 00:09:14]} {[%emt 00:07:51]} Bg3
{[%clk 00:29:12]} {[%emt 00:14:43]} 23. Ne6+ {[%clk 00:07:55]} {[%emt
00:01:50]} Kf7 {[%clk 00:28:58]} {[%emt 00:00:43]} 24. Re4 {[%clk 00:02:58]}
{[%emt 00:05:28]} Ne7 {[%clk 00:27:11]} {[%emt 00:02:15]} 25. Nxh4 {[%clk
00:00:41]} {[%emt 00:02:48]} Nxc4 {[%clk 00:25:50]} {[%emt 00:01:51]} 26. Rxc4
{[%clk 00:01:09]} {[%emt 00:00:02]} Nxd5 {[%emt 00:02:11]} 1/2-1/2

[Event "South Island Championships 2023"]
[Site "Oamaru, New Zealand"]
[Date "????.??.??"]
[Round "5.10"]
[White "Ong, Rommel"]
[Black "Lee, Dylan E S"]
[Result "1-0"]
[TimeControl "90 + 30"]
[WhiteFideId "5259630"]
[BlackFideId "4310098"]
[WhiteElo "1852"]
[BlackElo "1192"]

1. e4 {[%clk 01:30:58]} {[%emt 00:00:02]} c6 {[%clk 01:30:56]} {[%emt
00:00:04]} 2. d4 {[%clk 01:31:22]} {[%emt 00:00:05]} d5 {[%clk 01:31:22]}
{[%emt 00:00:04]} 3. Nd2 {[%clk 01:31:51]} {[%emt 00:00:02]} dxe4 {[%clk
01:31:44]} {[%emt 00:00:07]} 4. Nxe4 {[%clk 01:32:20]} {[%emt 00:00:01]} Nf6
{[%clk 01:32:04]} {[%emt 00:00:10]} 5. Nxf6+ {[%clk 01:32:48]} {[%emt
00:00:02]} exf6 {[%clk 01:32:20]} {[%emt 00:00:14]} 6. c3 {[%clk 01:33:16]}
{[%emt 00:00:03]} Bd6 {[%clk 01:32:27]} {[%emt 00:00:22]} 7. Bd3 {[%clk
01:33:42]} {[%emt 00:00:05]} Qc7 {[%clk 01:30:32]} {[%emt 00:02:25]} 8. Qc2
{[%clk 01:34:00]} {[%emt 00:00:11]} g6 {[%clk 01:30:04]} {[%emt 00:00:58]} 9.
Bh6 {[%clk 01:32:33]} {[%emt 00:01:57]} Be6 {[%clk 01:29:47]} {[%emt 00:00:48]}
10. Bg7 {[%clk 01:32:47]} {[%emt 00:00:15]} Rg8 {[%clk 01:29:41]} {[%emt
00:00:36]} 11. Bxf6 {[%clk 01:33:14]} {[%emt 00:00:03]} Nd7 {[%clk 01:29:45]}
{[%emt 00:00:26]} 12. Bh4 {[%clk 01:33:41]} {[%emt 00:00:03]} f6 {[%clk
01:29:41]} {[%emt 00:00:34]} 13. Ne2 {[%clk 01:30:56]} {[%emt 00:03:16]} O-O-O
{[%clk 01:29:41]} {[%emt 00:00:30]} 14. O-O-O {[%clk 01:31:12]} {[%emt
00:00:13]} Bxa2 {[%clk 01:14:57]} {[%emt 00:15:15]} 15. Qa4 {[%clk 01:30:50]}
{[%emt 00:00:51]} Bd5 {[%clk 01:13:03]} {[%emt 00:02:24]} 16. Qxa7 {[%clk
01:31:01]} {[%emt 00:00:20]} Bxg2 {[%clk 01:12:31]} {[%emt 00:01:01]} 17. Rhg1
{[%clk 01:26:17]} {[%emt 00:05:15]} Bf3 {[%clk 01:12:42]} {[%emt 00:00:18]} 18.
Bg3 {[%clk 01:26:39]} {[%emt 00:00:08]} Bxg3 {[%clk 01:12:13]} {[%emt
00:00:59]} 19. hxg3 {[%clk 01:26:52]} {[%emt 00:00:17]} f5 {[%clk 01:11:14]}
{[%emt 00:01:29]} 20. Rde1 {[%clk 01:27:12]} {[%emt 00:00:11]} Rde8 {[%clk
01:06:52]} {[%emt 00:04:51]} 21. Nf4 {[%clk 01:26:30]} {[%emt 00:01:12]} Nf6
{[%clk 01:00:21]} {[%emt 00:07:02]} 22. Bc4 {[%clk 01:12:45]} {[%emt 00:14:15]}
Bd5 {[%clk 00:48:15]} {[%emt 00:12:34]} 23. Ne6 {[%emt 00:01:10]} Qb8 {[%clk
00:47:34]} {[%emt 00:01:09]} 24. Qxb8+ {[%clk 01:10:46]} {[%emt 00:01:52]} Kxb8
{[%clk 00:47:55]} {[%emt 00:00:09]} 25. Bxd5 {[%clk 01:11:12]} {[%emt
00:00:05]} Nxd5 {[%clk 00:48:06]} {[%emt 00:00:19]} 26. Kd2 {[%clk 01:07:02]}
{[%emt 00:04:39]} Re7 {[%clk 00:46:04]} {[%emt 00:02:32]} 27. Ng5 {[%clk
01:03:50]} {[%emt 00:03:42]} h5 {[%clk 00:44:06]} {[%emt 00:02:28]} 28. Rxe7
{[%clk 01:03:40]} {[%emt 00:00:40]} Nxe7 {[%emt 00:00:15]} 29. Re1 {[%clk
01:04:02]} Nd5 {[%clk 00:43:06]} {[%emt 00:01:53]} 30. c4 {[%clk 01:02:17]}
{[%emt 00:02:16]} Nf6 {[%clk 00:40:35]} {[%emt 00:03:00]} 31. Re6 {[%clk
01:01:30]} {[%emt 00:01:16]} Ng4 {[%clk 00:38:43]} {[%emt 00:02:23]} 32. f3
{[%clk 01:01:34]} {[%emt 00:00:26]} Nh2 {[%clk 00:38:20]} {[%emt 00:00:53]} 33.
Ke1 {[%clk 01:01:37]} {[%emt 00:00:28]} Rd8 {[%clk 00:38:26]} {[%emt 00:00:24]}
34. Re2 {[%clk 00:59:15]} {[%emt 00:02:51]} Rxd4 {[%clk 00:38:51]} {[%emt
00:00:06]} 35. Rxh2 {[%clk 00:59:35]} {[%emt 00:00:09]} Rxc4 {[%clk 00:39:16]}
{[%emt 00:00:06]} 36. Rd2 {[%clk 00:58:09]} {[%emt 00:01:55]} h4 {[%clk
00:38:46]} {[%emt 00:01:01]} 37. gxh4 {[%clk 00:58:35]} {[%emt 00:00:04]} Rxh4
{[%clk 00:39:10]} {[%emt 00:00:06]} 38. Ke2 {[%clk 00:58:31]} {[%emt 00:00:34]}
Rh2+ {[%clk 00:38:46]} {[%emt 00:00:54]} 39. Ke3 {[%clk 00:58:17]} {[%emt
00:00:44]} Rxd2 {[%clk 00:38:51]} {[%emt 00:00:25]} 40. Kxd2 {[%clk 00:58:45]}
{[%emt 00:00:02]} Kc7 {[%clk 00:39:14]} {[%emt 00:00:07]} 41. Ke3 {[%clk
00:59:11]} {[%emt 00:00:04]} Kd6 {[%clk 00:39:34]} {[%emt 00:00:09]} 42. f4
{[%clk 00:59:14]} {[%emt 00:00:27]} Kc5 {[%clk 00:39:43]} {[%emt 00:00:21]} 43.
Kd3 {[%clk 00:59:43]} {[%emt 00:00:01]} Kb4 {[%clk 00:39:50]} {[%emt 00:00:23]}
44. Ne6 {[%clk 00:59:43]} {[%emt 00:00:30]} Kb3 {[%clk 00:40:01]} {[%emt
00:00:19]} 45. Nc5+ {[%clk 01:00:11]} {[%emt 00:00:02]} Kxb2 {[%clk 00:40:18]}
{[%emt 00:00:13]} 46. Nxb7 {[%clk 01:00:40]} Kc1 {[%clk 00:40:25]} {[%emt
00:00:23]} 47. Nd8 {[%clk 01:00:49]} {[%emt 00:00:22]} Kd1 {[%clk 00:40:46]}
{[%emt 00:00:08]} 48. Nxc6 {[%clk 01:01:14]} {[%emt 00:00:06]} Ke1 {[%clk
00:41:03]} {[%emt 00:00:13]} 49. Ke3 {[%clk 01:01:42]} Kf1 {[%clk 00:41:23]}
{[%emt 00:00:10]} 50. Ne7 {[%clk 01:02:10]} {[%emt 00:00:02]} Kg2 {[%clk
00:41:45]} {[%emt 00:00:08]} 51. Nxg6 {[%clk 01:02:17]} {[%emt 00:00:23]} Kh3
{[%clk 00:42:10]} {[%emt 00:00:05]} 52. Kf3 {[%clk 01:02:40]} {[%emt 00:00:06]}
Kh2 {[%clk 00:42:16]} {[%emt 00:00:25]} 53. Ne7 {[%clk 01:03:07]} {[%emt
00:00:03]} Kh3 {[%clk 00:42:36]} {[%emt 00:00:10]} 54. Nxf5 {[%clk 01:03:35]}
{[%emt 00:00:03]} Kh2 {[%clk 00:43:01]} {[%emt 00:00:04]} 55. Ne3 {[%clk
01:03:52]} {[%emt 00:00:13]} Kh3 {[%clk 00:43:25]} {[%emt 00:00:06]} 56. f5
{[%clk 01:04:18]} {[%emt 00:00:04]} Kh2 {[%clk 00:43:52]} {[%emt 00:00:04]} 57.
f6 {[%clk 01:04:35]} {[%emt 00:00:13]} Kh1 {[%clk 00:44:17]} {[%emt 00:00:05]}
58. f7 {[%clk 01:04:59]} {[%emt 00:00:06]} Kg1 {[%clk 00:44:41]} {[%emt
00:00:05]} 59. f8=Q {[%clk 01:04:57]} {[%emt 00:00:31]} Kh1 {[%clk 00:44:57]}
{[%emt 00:00:15]} 60. Qh6+ {[%clk 01:05:22]} {[%emt 00:00:05]} Kg1 {[%clk
00:45:20]} {[%emt 00:00:08]} 61. Qg5+ {[%clk 01:05:42]} {[%emt 00:00:10]} Kh2
{[%clk 00:45:43]} {[%emt 00:00:06]} 62. Qg2+ {[%clk 01:06:11]} 1-0

[Event "South Island Championships 2023"]
[Site "Oamaru, New Zealand"]
[Date "????.??.??"]
[Round "5.5"]
[White "Mischke, Andreas"]
[Black "Paulsen, Jens"]
[Result "0-1"]
[TimeControl "90 + 30"]
[WhiteFideId "34649840"]
[BlackFideId "4320476"]
[WhiteElo "1680"]
[BlackElo "2080"]

1. e4 {[%clk 01:30:58]} {[%emt 00:00:01]} c5 {[%clk 01:30:59]} {[%emt
00:00:01]} 2. Nc3 {[%clk 01:31:21]} {[%emt 00:00:08]} d6 {[%clk 01:31:18]}
{[%emt 00:00:11]} 3. Bc4 {[%clk 01:31:03]} {[%emt 00:00:48]} Nf6 {[%clk
01:31:42]} {[%emt 00:00:06]} 4. f4 {[%clk 01:30:45]} {[%emt 00:00:48]} e6
{[%clk 01:31:41]} {[%emt 00:00:31]} 5. e5 {[%clk 01:25:30]} {[%emt 00:05:45]}
Nfd7 {[%clk 01:23:37]} {[%emt 00:08:34]} 6. Nf3 {[%clk 01:22:35]} {[%emt
00:03:24]} a6 {[%clk 01:21:05]} {[%emt 00:03:03]} 7. a4 {[%clk 01:19:30]}
{[%emt 00:03:35]} dxe5 {[%clk 01:19:24]} {[%emt 00:02:11]} 8. fxe5 {[%clk
01:19:25]} {[%emt 00:00:35]} Nc6 {[%clk 01:19:35]} {[%emt 00:00:19]} 9. Qe2
{[%clk 01:14:59]} {[%emt 00:04:54]} Qc7 {[%clk 01:19:08]} {[%emt 00:00:59]} 10.
O-O {[%clk 01:15:13]} {[%emt 00:00:16]} Ncxe5 {[%clk 01:16:24]} {[%emt
00:03:13]} 11. Ng5 {[%clk 01:13:17]} {[%emt 00:02:26]} Nf6 {[%clk 01:13:27]}
{[%emt 00:03:28]} 12. Nce4 {[%clk 01:08:37]} {[%emt 00:05:10]} Be7 {[%clk
00:58:32]} {[%emt 00:15:25]} 13. d3 {[%clk 01:02:25]} {[%emt 00:06:42]} Nxe4
{[%clk 00:46:20]} {[%emt 00:12:42]} 14. Qxe4 {[%clk 00:55:10]} {[%emt
00:07:45]} Bxg5 {[%clk 00:34:28]} {[%emt 00:12:21]} 15. Bxg5 {[%clk 00:55:17]}
{[%emt 00:00:23]} Nxc4 {[%clk 00:34:33]} {[%emt 00:00:25]} 16. Qxc4 {[%clk
00:55:04]} {[%emt 00:00:43]} O-O {[%clk 00:32:53]} {[%emt 00:02:11]} 17. Be3
{[%clk 00:51:11]} {[%emt 00:04:23]} Bd7 {[%clk 00:28:16]} {[%emt 00:05:06]} 18.
Qxc5 {[%clk 00:45:21]} {[%emt 00:06:19]} Bc6 {[%clk 00:19:57]} {[%emt
00:08:50]} 19. Bd4 {[%clk 00:38:17]} {[%emt 00:07:34]} f6 {[%clk 00:18:30]}
{[%emt 00:01:57]} 20. Qc4 {[%clk 00:33:26]} {[%emt 00:05:20]} Qd7 {[%clk
00:15:58]} {[%emt 00:03:03]} 21. Bc5 {[%clk 00:30:31]} {[%emt 00:03:25]} Rfc8
{[%clk 00:14:34]} {[%emt 00:01:54]} 22. Qd4 {[%clk 00:22:27]} {[%emt 00:08:35]}
Qf7 {[%clk 00:13:45]} {[%emt 00:01:18]} 23. Qf2 {[%clk 00:21:46]} {[%emt
00:01:11]} Rd8 {[%clk 00:13:44]} {[%emt 00:00:31]} 24. d4 {[%clk 00:21:16]}
{[%emt 00:01:01]} Rd5 {[%clk 00:13:45]} {[%emt 00:00:29]} 25. Qe3 {[%clk
00:17:18]} {[%emt 00:04:27]} Re8 {[%clk 00:10:03]} {[%emt 00:04:12]} 26. c4
{[%clk 00:16:20]} {[%emt 00:01:28]} Rh5 {[%clk 00:08:10]} {[%emt 00:02:23]} 27.
b4 {[%clk 00:08:13]} {[%emt 00:08:37]} Qc7 {[%clk 00:06:30]} {[%emt 00:02:10]}
28. g3 {[%clk 00:06:24]} {[%emt 00:02:19]} b6 {[%clk 00:06:05]} {[%emt
00:00:55]} 29. b5 {[%clk 00:05:37]} {[%emt 00:01:18]} Ba8 {[%clk 00:04:42]}
{[%emt 00:01:51]} 30. Bb4 {[%clk 00:04:31]} {[%emt 00:01:38]} Qxc4 {[%clk
00:04:46]} {[%emt 00:00:26]} 31. Qc3 {[%clk 00:02:04]} {[%emt 00:02:57]} Qd5
{[%clk 00:04:38]} {[%emt 00:00:38]} 32. Kf2 {[%clk 00:01:39]} {[%emt 00:00:54]}
Rxh2+ {[%clk 00:04:24]} {[%emt 00:00:44]} 33. Ke1 {[%clk 00:02:04]} {[%emt
00:00:06]} Qe4+ {[%clk 00:04:39]} {[%emt 00:00:14]} 0-1